Cogmind - Beta 13 *** ADVENTURER MODE // 2024.08.05 @ 11:56:46 Player: Jefffff Result: Destroyed by 41-PIQ(R) with Subdweller Machine Gun Performance ------------- Evolutions (0) 0 Regions Visited (3) 600 Robots Destroyed (43) 215 Value Destroyed (887) 887 Prototype IDs (4) 80 Alien Tech Used (0) 0 Bonus (0) 0 TOTAL SCORE: 1782 Bonus ------- None Cogmind --------- Core Integrity 0/250 Matter 229/300 Energy 250/250 System Corruption 0% Temperature Cool (0) Movement Rolling (135) Ox3 Location -10/Subcaves Parts ------- > --- POWER (1) -------- Ion Engine > --- PROPULSION (2) --- Wheel Compact Wheel > --- UTILITY (2) ------ Huge Storage Unit Signal Interpreter > --- WEAPON (2) ------- Barrage Gun > --- INVENTORY (25) --- Improved Ion Engine Light Nuclear Core Wheel Armored Wheel Armored Wheel Armored Wheel Armored Wheel Improved Heat Sink Weight Redist. System Structural Scanner Sensor Array Seismic Detector Transport Network Coupler Targeting Computer Core Shielding Utility Shielding Utility Shielding Utility Shielding Light Armor Plating Beam Rifle Particle Cannon Particle Cannon Heavy Assault Rifle Heavy Assault Rifle Peak State ------------ > --- POWER ------------ Light Angular Momentum Engine > --- PROPULSION ------- Compact Wheel Compact Wheel > --- UTILITY ---------- Huge Storage Unit Signal Interpreter > --- WEAPON ----------- Heavy Assault Rifle Battle Cannon > --- INVENTORY -------- Ion Engine Improved Ion Engine Light Nuclear Core Wheel Wheel Armored Wheel Armored Wheel Armored Wheel Armored Wheel Weight Redist. System Structural Scanner Sensor Array Terrain Scan Processor Seismic Detector Transport Network Coupler Targeting Computer Core Shielding Utility Shielding Utility Shielding Utility Shielding Light Armor Plating Beam Rifle Particle Cannon Particle Cannon Heavy Assault Rifle [Rating: 16] Favorites ----------- Power Ion Engine Engine Ion Engine Power Core Light Nuclear Core Propulsion Compact Wheel Leg Aluminum Leg Wheel Compact Wheel Utility Huge Storage Unit Storage Huge Storage Unit Processor Signal Interpreter Weapon Light Assault Rifle Energy Gun Medium Laser Ballistic Gun Light Assault Rifle Ballistic Cannon Battle Cannon Build | -11 -10 -10 -10 ------- Run | Yrd Mat Min Sub Slots Evolved . | . . . . Power . | . . . . Propulsion . | . . . . Utility . | . . . . Weapon . | . . . . Parts Attached 26 | . 17 6 3 Power 7 | . 3 3 1 Engine 6 | . 3 2 1 Core 1 | . . 1 . Reactor . | . . . . Propulsion 8 | . 7 . 1 Treads . | . . . . Leg . | . . . . Wheel 8 | . 7 . 1 Hover . | . . . . Flight . | . . . . Utility 2 | . 2 . . Device . | . . . . Storage 1 | . 1 . . Processor 1 | . 1 . . Hackware . | . . . . Protection . | . . . . Artifact . | . . . . Weapon 9 | . 5 3 1 Energy Gun 3 | . 2 1 . Energy Cannon . | . . . . Ballistic Gun 5 | . 3 1 1 Ballistic Cannon 1 | . . 1 . Launcher . | . . . . Special Weapon . | . . . . Impact Weapon . | . . . . Slashing Weapon . | . . . . Piercing Weapon . | . . . . Special Melee Weapon . | . . . . Unidentified Prototypes . | . . . . Parts Lost 5 | . 2 . 3 Power 1 | . . . 1 Propulsion 3 | . 2 . 1 Utility . | . . . . Weapon 1 | . . . 1 Highest Loss Streak 2 | . 2 . 1 To Critical Strikes . | . . . . Average Slot Usage (%) 98 | . 98 100 97 Engine 10 | . 13 6 11 Core 2 | . . 7 . Wheel 27 | . 27 28 27 Storage 14 | . 14 14 14 Processor 13 | . 13 14 14 Energy Gun 7 | . 12 5 . Ballistic Gun 16 | . 15 17 14 Ballistic Cannon 4 | . . 4 14 Naked Turns . | . . . . Heaviest Build 95 | 14 89 95 95 Greatest Support 32 | 20 32 32 32 Greatest Overweight (x) 5 | . 5 2 5 Average Overweight (x) 2 | . 3 2 2 Largest Inventory Capacity 25 | 8 25 25 25 Average Capacity 24 | 8 24 25 25 Most Carried 25 | 6 25 25 25 Average Carried 22 | 6 20 24 24 Final Capacity 25 | 8 25 25 25 Final Carried 25 | 6 25 25 24 Class Distribution -------------------- 69% | Mutant 30% | Scavenger-Mutant Dominant Class ---------------- Mutant | -10/Materials Scavenger-Mutant | -10/Mines Mutant | -10/Subcaves Resources | -11 -10 -10 -10 ----------- Run | Yrd Mat Min Sub Matter Collected 1187 | 200 297 106 584 Remotely . | . . . . Salvage Created 1448 | . 820 211 417 Parts 89 | . 42 10 37 Haulers Intercepted 2 | . 2 . . Recyclers Shooed 4 | . 2 2 . Parts Field Recycled . | . . . . Retrieved Matter . | . . . . Parts Self-Destructed 15 | . . . 15 Prevented . | . . . . Kills | -11 -10 -10 -10 ------- Run | Yrd Mat Min Sub Combat Hostiles Destroyed 31 | . 14 5 12 Guns 26 | . 14 5 7 Cannons 5 | . . . 5 Classes Destroyed 8 | . 6 . 2 Worker 4 | . 2 2 . Hauler 2 | . 2 . . Recycler 3 | . 3 . . Watcher 3 | . 3 . . Swarmer 14 | . 9 2 3 Grunt 8 | . 5 3 . Sentry 1 | . . . 1 Subdweller 8 | . . . 8 Best Kill Streak 4 | . 4 4 2 Combat Bots Only 4 | . 3 4 2 Max Kills in Single Turn 1 | . 1 1 1 Gunslinging . | . . . . Exploded . | . . . . Melee . | . . . . Uniques/NPCs Destroyed . | . . . . Combat | -11 -10 -10 -10 -------- Run | Yrd Mat Min Sub Hostile Shots Fired 149 | . 67 12 70 Missed 50 | . 20 5 25 Damage Taken 923 | . 315 65 543 Core 255 | . 67 30 158 Absorbed by Shields . | . . . . Ignored by Resistances 285 | . 107 19 159 Core Remaining (%) 100 | 100 . . . Volleys Fired 154 | . 59 18 77 Largest 2 | . 2 2 2 Hottest 85 | . 70 85 67 Shots Fired 306 | . 117 36 153 Gun 228 | . 117 34 77 Cannon 78 | . . 2 76 Launcher . | . . . . Special . | . . . . Kinetic 246 | . 59 34 153 Thermal 43 | . 41 2 . Explosive . | . . . . Electromagnetic 17 | . 17 . . Robot Hit Streak 22 | . 22 9 20 Robot Miss Streak 4 | . 3 1 4 Penetration Max . | . . . . Secondary Targets 5 | . 4 1 . Max Gunslinging Chain 1 | . 1 1 . Shots Hit Robots 196 | . 84 27 85 Core Hits 74 | . 36 14 24 Critical Kills 2 | . . 1 1 Critical Parts Destroyed . | . . . . Critical Strikes 8 | . 3 1 4 Burn 2 | . 2 . . Destroy 2 | . . 1 1 Blast 3 | . . . 3 Corrupt 1 | . 1 . . Melee Attacks . | . . . . Impact . | . . . . Slashing . | . . . . Piercing . | . . . . Sneak Attacks . | . . . . Combat Hostiles . | . . . . Follow-up Attacks . | . . . . Damage Inflicted 2639 | . 1006 254 1379 Guns 1886 | . 1006 224 656 Cannons 740 | . . 17 723 Explosions . | . . . . Melee . | . . . . Ramming 13 | . . 13 . Kinetic 2033 | . 428 226 1379 Thermal 391 | . 376 15 . Explosive . | . . . . Electromagnetic 202 | . 202 . . Impact . | . . . . Slashing . | . . . . Piercing . | . . . . Highest Corruption . | . . . . Average Corruption . | . . . . Corruption Purged . | . . . . Corruption Blocked . | . . . . Overload Shots . | . . . . Overflow Damage 11 | . . . 11 Projectiles 11 | . . . 11 Explosions . | . . . . Melee . | . . . . Knockbacks 7 | . . 1 6 Impact . | . . . . Kinetic 7 | . . 1 6 Secondary . | . . . . Self-Inflicted Damage 6 | . . 6 . Shots . | . . . . Rammed 1 | . . 1 . Targets Rammed 1 | . . 1 . Kicked . | . . . . Crushed . | . . . . Highest Temperature 126 | . 126 48 . Average Temperature 34 | . 39 11 . Received Heat Transfer 210 | . 108 24 78 Siege Activations . | . . . . Robots Corrupted . | . . . . Combat Hostiles . | . . . . Parts Fried . | . . . . Impact Corruptions . | . . . . Robots Melted . | . . . . Combat Hostiles . | . . . . Parts Melted 3 | . 3 . . Heat Transferred 1295 | . 1258 37 . Parts Sabotaged . | . . . . Parts Stolen . | . . . . Parts Stripped . | . . . . Power Chain Reactions . | . . . . Alert | -11 -10 -10 -10 ------- Run | Yrd Mat Min Sub Peak Influence 199 | . 199 120 . Initial . | . . . . Average 50 | . 59 39 . Maximum Alert Level . | . . . . Low Security (%) 100 | 100 100 100 . Level 1 . | . . . . Level 2 . | . . . . Level 3 . | . . . . Level 4 . | . . . . Level 5 . | . . . . High Security . | . . . . Max Security . | . . . . Squads Dispatched 3 | . 3 . . Investigation 3 | . 3 . . Extermination . | . . . . Reinforcement . | . . . . Assault . | . . . . Garrison . | . . . . Intercept . | . . . . Searches Triggered . | . . . . Construction Impeded . | . . . . Haulers Reinforced . | . . . . Active Scanning Responses . | . . . . Cargo Convoy Interrupts . | . . . . Stealth | -11 -10 -10 -10 --------- Run | Yrd Mat Min Sub Distress Signals . | . . . . Communications Jammed . | . . . . Distress Signals . | . . . . Times Spotted 42 | . 21 7 14 Peak Tracking Total 3 | . 3 3 3 Tactical Retreats 3 | . 1 1 1 Traps | -11 -10 -10 -10 ------- Run | Yrd Mat Min Sub Traps Triggered 4 | . 4 . . Indirectly . | . . . . Trap Hack Attempts . | . . . . Triggered . | . . . . Disarmed . | . . . . Reprogrammed . | . . . . Reused . | . . . . Traps Extracted . | . . . . Installed . | . . . . Triggered . | . . . . Objects Rigged 1 | . 1 . . Machines | -11 -10 -10 -10 ---------- Run | Yrd Mat Min Sub Machines Disabled 1 | . . 1 . Max in Single Turn 1 | . . 1 . Machines Repaired . | . . . . Machines Dismantled . | . . . . Machines Sabotaged . | . . . . Overloaded Fab Kills . | . . . . Hacking | -11 -10 -10 -10 --------- Run | Yrd Mat Min Sub Machines Accessed 6 | . 6 . . Terminals 6 | . 6 . . Fabricators . | . . . . Repair Stations . | . . . . Recycling Units . | . . . . Scanalyzers . | . . . . Garrison Access . | . . . . Total Hacks 20 | . 20 . . Successful 13 | . 13 . . Failed 7 | . 7 . . Catastrophic . | . . . . Database Lockouts . | . . . . Manual 16 | . 16 . . Terminals 20 | . 20 . . Fabricators . | . . . . Repair Stations . | . . . . Recycling Units . | . . . . Scanalyzers . | . . . . Garrison Access . | . . . . Terminal Hacks 5 | . 5 . . Record 1 | . 1 . . Prototype ID Bank 2 | . 2 . . Terminal Index 1 | . 1 . . Alert Level 1 | . 1 . . Fabricator Hacks . | . . . . Repair Station Hacks . | . . . . Recycling Unit Hacks . | . . . . Scanalyzer . | . . . . Garrison Access Hacks . | . . . . Unauthorized Hacks 8 | . 8 . . Terminals 8 | . 8 . . Assimilate 1 | . 1 . . Botnet 6 | . 6 . . Detonate 1 | . 1 . . Fabricators . | . . . . Repair Stations . | . . . . Recycling Units . | . . . . Scanalyzers . | . . . . Garrison Access . | . . . . Data Cores Recovered . | . . . . Used . | . . . . Hacking Detections 6 | . 6 . . Full Trace Events . | . . . . Feedback Events . | . . . . Feedback Blocked . | . . . . Robot Schematics Acquired . | . . . . Robots Built . | . . . . Authchips . | . . . . Time . | . . . . Total Robot Build Rating . | . . . . Part Schematics Acquired . | . . . . Parts Built . | . . . . Authchips . | . . . . Time . | . . . . Total Part Build Rating . | . . . . Parts Repaired . | . . . . Time . | . . . . Parts Recycled . | . . . . Recycled Matter . | . . . . Retrieved Matter . | . . . . Retrieved Components . | . . . . Parts Scanalyzed . | . . . . Part Schematics Acquired . | . . . . Parts Damaged . | . . . . Bothacking | -11 -10 -10 -10 ------------ Run | Yrd Mat Min Sub Used RIF Installer . | . . . . Robots Hacked . | . . . . Non-combat . | . . . . Combat . | . . . . Robot Hacks Applied . | . . . . Relay Couplers Released . | . . . . Fabnet Peak Effective % . | . . . . Robots Rewired . | . . . . Allies Hacked . | . . . . Hacks Repelled . | . . . . Allies | -11 -10 -10 -10 -------- Run | Yrd Mat Min Sub Total Allies . | . . . . Largest Group . | . . . . Highest-Rated Group . | . . . . Highest-Rated Ally . | . . . . Total Orders . | . . . . Ally Attacks . | . . . . Total Damage . | . . . . Kills . | . . . . Allies Corrupted . | . . . . Allies Melted . | . . . . Intel | -11 -10 -10 -10 ------- Run | Yrd Mat Min Sub Robot Analysis Total . | . . . . Derelict Logs Recovered 3 | . . 3 . Drone Launches . | . . . . Drone Recoveries . | . . . . Exploration | -11 -10 -10 -10 ------------- Run | Yrd Mat Min Sub Turns Passed 3764 | 30 1606 1276 852 Spaces Moved 2330 | 26 970 870 464 Core . | . . . . Treads . | . . . . Legs 41 | 26 15 . . Wheels 2289 | . 955 870 464 Hover . | . . . . Flight . | . . . . Fastest Speed 120 | 120 120 130 130 Average Speed 133 | 120 137 130 132 Slowest Speed 400 | 120 400 130 175 Overloaded Moves . | . . . . Propulsion Burnouts . | . . . . Robots Hopped . | . . . . Cave-ins Triggered . | . . . . Exploration Rate (%) 59 | 4 96 99 39 Regions Visited 3 Branch Regions 2 Pre-discovered Areas 2 | . . 2 . Known Exits Taken 2 | . 1 1 . Unknown Exits Taken 1 | 1 . . . Scrap Searched 3 | . . 1 2 Spaces Dug . | . . . . Terrain Destroyed 3 | . . . 3 Melee . | . . . . Projectile 3 | . . . 3 AOE . | . . . . Terrain Rammed . | . . . . Walls Destroyed . | . . . . Machines Disabled . | . . . . Actions | -11 -10 -10 -10 --------- Run | Yrd Mat Min Sub Total 2705 | 25 1133 997 550 Wait 114 | . 39 69 6 Move 2327 | 25 969 869 464 Hop . | . . . . Pick Up 45 | . 31 14 . Fast Attach 7 | . 5 2 . Attach 7 | . 5 . 2 Detach . | . . . . Swap 12 | . 7 4 1 Drop 38 | . 18 20 . Fire 154 | . 59 18 77 Melee . | . . . . Ram 1 | . . 1 . Kick . | . . . . Crush . | . . . . Escape Stasis . | . . . . Rewire . | . . . . Trap . | . . . . Miscellaneous . | . . . . Route ------- -11/Scrapyard -10/Materials (discovered 4 exits: *Mat x3 / *Min) -10/Mines (discovered 4 exits: *Mat x2 / *Exi / *Sub) -10/Subcaves (discovered 1 exit: *Mat) History --------- Turn | Location | Event 1 | -11/Scrapyard | Discovered new exit (range 3) 31 | -11/Scrapyard | Entered Materials 109 | -10/Materials | Discovered new exit (range 7) 306 | -10/Materials | Build established: Mutant 547 | -10/Materials | Discovered new exit (range 10) 594 | -10/Materials | Identified exit to Materials 756 | -10/Materials | Discovered new exit (range 12) 813 | -10/Materials | Discovered exit to Materials (range 5) 1636 | -10/Materials | Identified exit to Mines 1637 | -10/Materials | Entered Mines 1679 | -10/Mines | Build established: Scavenger-Mutant 1689 | -10/Mines | Met a Derelict bent on vengeance 1954 | -10/Mines | Learned location of Zion (-7) 1958 | -10/Mines | Discovered exit to Materials (range 7) 2084 | -10/Mines | Deemed a non-threat by the Exiles lab entrance 2084 | -10/Mines | Discovered new exit (range 5) 2088 | -10/Mines | Identified exit to Exiles 2307 | -10/Mines | Joined a pair of Derelicts in attacking an 0b10 outpost 2464 | -10/Mines | A weapon hastily lodged in a ceiling crevice suddenly fell to the ground 2730 | -10/Mines | Discovered exit to Materials (range 14) 2769 | -10/Mines | Learned Materials machine intel 2770 | -10/Mines | Build established: Mutant 2907 | -10/Mines | Discovered new exit (range 6) 2912 | -10/Mines | Identified exit to Subcaves 2913 | -10/Mines | Entered Subcaves 2929 | -10/Subcaves | Ambushed by Subdwellers from Twisted Machinery 3106 | -10/Subcaves | A swath of the cavern ceiling suddenly collapsed 3143 | -10/Subcaves | Discovered new exit (range 3) 3145 | -10/Subcaves | Identified exit to Materials 3301 | -10/Subcaves | Core integrity fell below 50% 3363 | -10/Subcaves | Core integrity fell below 20% 3502 | -10/Subcaves | Ambushed by Subdwellers from Twisted Machinery 3765 | -10/Subcaves | Destroyed by 41-PIQ(R) with Subdweller Machine Gun Last Messages --------------- 03489_ Acquired 34 matter. 03502_ OC-GC8(R) emerges from the Twisted Machinery. 03508_ U4-NUW(R) destroyed. 03511_ OC-GC8(R) knocked back. 03514_ OC-GC8(R) destroyed. 03527_ Acquired 43 matter. 03528_ Acquired 26 matter. 03537_ Acquired 4 matter. 03595_ Acquired 12 matter. 03615_ Acquired 17 matter. 03618_ Acquired 15 matter. 03627_ Acquired 13 matter. 03629_ Acquired 10 matter. 03742_ B5-7HX(R) knocked back. 03745_ B5-7HX(R) destroyed. 03753_ 41-PIQ(R) affixes Scrap Shield Fragment to Scrap Shield. 03758_ 41-PIQ(R) knocked back. 03761_ Battle Cannon destroyed. Map ----- +----------------------------------------------------+ | | | | | | | | | | | | | ?????????????????????????????????????????????????? | | ?????????????????????????????????????????????????? | | ?????????????????????????????????????????????????? | | ?????????????????????????????????????????????????? | | ?????????????????????????????????????????????????? | | ?????????????????????????????????????????????????? | | ?????????????????????????????????????????????????? | | ?????????????????????????????????????????????????? | | ?????????????????????????????????????????????????? | | ?????????????????????????????????????????????????? | | ?????????????????????????????????????????????????? | | ?????????????????????????????????????????????????? | | ?????????????????????????????????????????????????? | | ?????????????????????????????????????????????????? | | ??????????????????????????####???????????????????? | | ?????????????????????###??# ##??????????????????? | | ?????????????????????# #### ##??????????? ????? | | ?????????????????????# ## % ;#?????????? ??? | | ?????????????????????# ![ #?????????? #??? | | ?????????????????????## @%%R ##???????? ##?? | | ??????????????????????#####%! ##??????? ?? | | ??????????????????????????# #?????## ?? | | ??????????????????????????# #????# ???? | | ????????????????? #### #???? #????? | | ???????????????? ##??? #????? | | ??????????????? #### #????? | | ???????????????? ## ## | | ????????????????# ## ### | | ????????????????????## ??# ## | | ?????????????????????## ??##### ##?????????? | | ??????????????????????# ??????# ##?????????? | | ????????????????????? ??????# #?????????? | | ???????????????????? ??????### #?????????? | | ??????????????????? ???###??# ##?????????? | | ??????????????????? ???# ### #??????????? | | ?????????????????????? ?#?????# #????#?????? | | ??????????????????????????????## ###??? ##????? | | ???????????????????????????????# #???? ##### | | ???????????????????????????????# ##??# | | ???????????????????????????????# ### | | ???????????????????????????????# | | ???????????????????????????????# # | | ????????????????????" "???????## # | | ??????????????????"" """ ?????## ## # | +----------------------------------------------------+ Best States ------------- Heat Dissipation 25 Energy Generation 18 Energy Capacity 250 Matter Stores 300 Matter Capacity 300 Sight Range 16 Terrain Scan Density 10 Resistance: KI 20 Resistance: TH 20 Resistance: EX 20 Resistance: EM 20 Resistance: I 20 Resistance: S 20 Resistance: P 20 Evasion (%) 50 Offensive Hacking 10 Item Schematics ----------------- None Robot Schematics ------------------ None Fabricated ------------ Nothing Alien Tech Used ----------------- None Achievements -------------- None Challenges ------------ None Game ------ Seed SurgeActiveGun Manual? 0 Play Time 00:21:35 Cumulative 120.0 hours Start 2024.08.05 @ 11:33:35 End 2024.08.05 @ 11:56:46 Sessions 1 Manual Loads 0 Difficulty Adventurer Special Mode None Game No. 166 Rogue 0 Adventurer 166 Explorer 0 Win Type - Total 0 Types 0/0/0/0/0/0/0/0/0 Lore% 47 Gallery% 52 Achievement% 37 Wizard Run 0 Options --------- Layout 2 ASCII 0 Keyboard 0 Movement Mouse Keybinds 0 Fullscreen 2 Font 48/Terminus Map View 50x44 Zoom Use 0% Tactical HUD 1 Map Filters NONE Filters NONE Steam 1 RUN: 5091545d-0569-4a51-9907-bc0dc88e21df